[Event "82nd Italian Championship 2023"]
[Site "Brescia"]
[Date "2023.11.30"]
[Round "3.1"]
[White "Iermito, Sebastian"]
[Black "Santagati, Alessandro"]
[Result "1-0"]
[ECO "B30"]
[WhiteElo "2524"]
[BlackElo "2245"]
[Annotator "TA"]
[PlyCount "97"]
[EventDate "2023.11.28"]
[EventType "tourn"]
[EventCountry "ITA"]
[SourceTitle "playchess.com"]
[Source "ChessBase"]
[SourceQuality "1"]
[TimeControl "40/6000+30:20/3000+30:900+30"]

{[%evp 12,97,16,13,12,12,17,19,18,12,17,8,33,0,0,7,8,8,4,0,18,0,12,5,18,13,17,21,14,0,-23,-20,0,11,45,0,0,0,0,7,38,0,84,84,83,88,101,82,133,133,133,111,161,144,217,205,179,207,227,240,212,171,262,204,213,203,207,168,149,154,210,195,239,247,376,359,357,342,328,347,431,428,407,386,542,538,508,498]} 1. Nf3 {[%emt 0:00:03][%cal Bg1f3,Bf3d2,Bd2f1,Bf1e3][%mdl 32]} c5 {[%emt 0:13:25]} 2. e4 {[%emt 0:00:31]} d6 {[%emt 0:01:30]} 3. Nc3 {[%emt 0:00:46]} e5 {[%emt 0:06:04]} 4. Bc4 {[%emt 0:00:55]} Nc6 {[%emt 0:01:07]} 5. d3 {[%emt 0:00:08]} Be7 {[%emt 0:00:33]} 6. Nd2 {[%emt 0:00:30]} Bg5 {[%emt 0:01:33]} 7. Nf1 {[%emt 0:10:08] [#] aiming for Qh5.} Bxc1 {[%emt 0:00:13] B30: Sicilian: 2...Nc6 3 Bb5, lines without ...g6.} 8. Rxc1 {[%emt 0:00:09]} Nge7 {[%emt 0:01:10]} 9. Ne3 {[%emt 0:00:57]} O-O {[%emt 0:01:56] The position is equal.} 10. O-O {[%emt 0:00:03]} Ng6 {[%emt 0:04:25]} 11. Ncd5 {[%emt 0:04:47] [#]} Kh8 $146 {[%emt 0:04:29]} ({Predecessor:} 11... Be6 12. c3 Na5 13. Nf5 Kh8 14. g3 Qd7 15. Nde3 Ne7 16. Nxe7 Nxc4 17. dxc4 Qxe7 {1-0 Vachier Lagrave,M (2722)-Carlsen,M (2821) Biel Accentus 2011 (5)}) 12. a3 {[%emt 0:05:40]} Rb8 {[%emt 0:01:15]} 13. c3 {[%emt 0:10:36]} b5 {[%emt 0:01:57]} (13... Qg5 {feels hotter.} 14. b4 b5 15. Ba2 Nf4) 14. Ba2 {[%emt 0:00:03]} a5 {[%emt 0:00:50]} (14... Qg5 {is more complex.} 15. b4 Nf4 16. f3 Be6) 15. a4 {[%emt 0:02:16]} b4 {[%emt 0:03:33]} 16. Bc4 {[%emt 0:06:14]} Be6 {[%emt 0:06:31]} 17. Kh1 {[%emt 0:13:20]} Nce7 {[%emt 0:03:55]} 18. Nxe7 {[%emt 0:01:17]} Qxe7 {[%emt 0:00:32]} 19. g3 {[%emt 0:07:30]} Bh3 {[%emt 0:04:13]} 20. Rg1 {[%emt 0:03:26]} Qg5 {[%emt 0:05:10]} 21. Bb5 {[%emt 0:16:40]} bxc3 {[%emt 0:14:45]} (21... f5 $5 {[%cal Rf5e4]}) 22. bxc3 {[%emt 0:00:08]} Rbd8 {[%emt 0:03:27]} (22... f5 $5 {[%cal Rf5e4]}) 23. Rc2 {[%emt 0:09:39]} f5 {[%emt 0:03:07]} 24. Nxf5 {[%emt 0:01:24]} Bxf5 {[%emt 0:00:15]} 25. exf5 {[%emt 0:00:01]} Rxf5 {[%emt 0:00:40]} 26. d4 {[%emt 0:02:14]} Qf6 {[%emt 0:10:55]} (26... e4 $11) 27. dxc5 $16 {[%emt 0:02:30]} dxc5 {[%emt 0:02:17]} 28. Qe2 {[%emt 0:01:56]} Rf8 {[%emt 0:03:43]} 29. Rf1 {[%emt 0:00:08]} Qe6 {[%emt 0:08:11]} (29... e4 $142) 30. Bd3 {[%emt 0:01:40]} R5f6 {[%emt 0:00:29]} 31. Be4 {[%emt 0:03:08]} Rb8 {[%emt 0:01:37]} (31... Ne7 $16) 32. Kg1 {[%emt 0:01:01]} Nf8 {[%emt 0:00:47]} (32... Rff8 $16 33. Rd2 Ne7) 33. Rb2 $18 {[%emt 0:01:10]} Rxb2 {[%emt 0:00:21]} 34. Qxb2 {[%emt 0:00:01]} Qc4 {[%emt 0:00:20]} 35. Qc2 {[%emt 0:00:47]} g6 {[%emt 0:01:07]} 36. Rb1 {[%emt 0:01:09]} Kg7 {[%emt 0:00:38]} (36... Rf7 $142 37. Rd1 Re7) 37. h4 {[%emt 0:01:54]} Rf7 {[%emt 0:00:32]} 38. Bd3 {[%emt 0:02:40][%cal Be4d3,Bd3e2,Be2b5][%mdl 32]} Qg4 {[%emt 0:00:33]} 39. Qe2 {[%emt 0:00:27]} Qxe2 {[%emt 0:01:17]} 40. Bxe2 {[%emt 0:00:01][%mdl 4096] Endgame KRB-KRN} Rd7 {[%emt 0:00:30]} (40... Ra7 $16 41. Rb6 e4) 41. Rb5 {[%emt 0:04:57][%csl LRa5,LRc5]} Rd2 {[%emt 0:00:49]} 42. Kf1 {[%emt 0:01:35]} Nd7 {[%emt 0:02:43]} (42... Rc2 $142 43. Rxc5 e4 44. Rxa5 Kf6) 43. Ke1 {[%emt 0:01:20]} ({But not} 43. Rxa5 Kh6 44. g4 Nb6) 43... Rd6 {[%emt 0:00:24]} 44. Rxa5 {[%emt 0:00:13]} Kf6 {[%emt 0:01:07]} 45. Bb5 {[%emt 0:12:21]} Nb6 {[%emt 0:01:29]} 46. Ra6 {[%emt 0:02:53]} Ke6 {[%emt 0:00:28]} 47. c4 {[%emt 0:01:29] Prevents Nd5} e4 {[%emt 0:01:09]} (47... Nc8 {was necessary.} 48. Ra8 Ne7) 48. a5 {[%emt 0:00:44]} Nc8 {[%emt 0:00:09]} 49. Ra8 {[%emt 0:00:37] Weighted Error Value: White=0.10 (very precise) /Black=0.24 (precise)} 1-0

[Event "82nd Italian Championship 2023"]
[Site "Brescia"]
[Date "2023.11.30"]
[Round "3.2"]
[White "David, Alberto"]
[Black "Carnicelli, Valerio"]
[Result "1-0"]
[ECO "C00"]
[WhiteElo "2532"]
[BlackElo "2423"]
[Annotator "TA"]
[PlyCount "69"]
[EventDate "2023.11.28"]
[EventType "tourn"]
[EventCountry "ITA"]
[SourceTitle "playchess.com"]
[Source "ChessBase"]
[SourceQuality "1"]
[TimeControl "40/6000+30:20/3000+30:900+30"]

{[%evp 16,68,-9,-1,4,-23,-22,-39,-35,-45,-43,-50,-14,-25,0,0,0,0,0,2,71,78,83,65,112,71,157,108,118,125,127,133,586,591,583,558,529,521,525,520,500,514,490,500,702,743,2081,2032,1816,1802,1635,1463,1446,1421,29999]} 1. e4 {[%emt 0:00:09]} c5 {[%emt 0:01:14]} 2. Nf3 {[%emt 0:00:08]} e6 {[%emt 0:00:03]} 3. d3 {[%emt 0:04:00]} Nc6 {[%emt 0:00:27]} 4. g3 {[%emt 0:00:06]} d5 {[%emt 0:00:11]} 5. Nbd2 {[%emt 0:01:36]} Nf6 {[%emt 0:01:08]} 6. Bg2 {[%emt 0:00:05]} Be7 {[%emt 0:00:08]} 7. O-O {[%emt 0:00:08]} O-O {[%emt 0:01:38]} 8. Re1 {[%emt 0:01:14]} Re8 {[%emt 0:08:42]} 9. c3 {[%emt 0:09:11]} b5 {[%emt 0:03:21] C00: French: Unusual White 2nd moves.} 10. e5 {[%emt 0:02:39]} Nd7 {[%emt 0:00:06]} 11. Nf1 {[%emt 0:00:12]} a5 {[%emt 0:02:21][%cal Ba7a5,Ba5a4][%mdl 32] Black is slightly better.} 12. h4 {[%emt 0:09:11]} Ba6 {[%emt 0:05:03]} 13. Bf4 {[%emt 0:18:34] [#]} a4 $146 {[%emt 0:03:33]} ({Predecessor:} 13... b4 14. N1h2 a4 15. a3 bxc3 16. bxc3 Rb8 17. h5 h6 18. Ng4 Rb3 19. Qc1 Bxd3 20. Nxh6+ gxh6 21. Bxh6 {0-1 Seletsky,G (2272)-Gelman,A (2403) Titled Tuesday intern op 17th Aug blitz 2021 (10)}) 14. Ne3 {[%emt 0:12:15]} Nb6 {[%emt 0:03:54]} 15. Ng5 {[%emt 0:28:19]} h6 {[%emt 0:12:46]} 16. Nh3 {[%emt 0:00:04]} b4 {[%emt 0:04:48]} (16... Nd7 $5) 17. c4 {[%emt 0:00:11]} Nd4 {[%emt 0:03:56]} (17... Bf8 $1 $11) 18. Qg4 $1 $16 {[%emt 0:00:15]} Kh7 {[%emt 0:12:17]} 19. Qh5 {[%emt 0:00:39] Ng5+ would be deadly.} Rf8 {[%emt 0:11:32]} (19... Kg8 20. Bxh6 gxh6 21. Ng4 $16) (19... Rh8 $1 $14) 20. Rad1 {[%emt 0:09:44]} Bc8 {[%emt 0:01:39]} (20... Qe8 $142) 21. Ng4 {[%emt 0:06:58]} (21. Bxh6 $142 gxh6 22. Ng4) 21... Nf5 {[%emt 0:05:37] [#] Threatens to win with ...g6.} 22. Ng5+ $1 {[%emt 0:00:25]} (22. cxd5 $2 g6 23. Nf6+ Bxf6 $19) 22... Kg8 {[%emt 0:02:33] [#]} 23. Be4 $1 {[%emt 0:00:04] White has more active pieces. The black rooks are badly placed.} Ra6 $2 {[%emt 0:03:22][%mdl 8192] Black cannot hold the game after this.} (23... dxe4 24. dxe4 Nd4 25. Nxh6+ gxh6 26. Qxh6 Bxg5 27. hxg5) (23... hxg5 $16 24. hxg5 g6 25. Nh6+ Kh7 26. Bxf5 Kg7) 24. Bxf5 $18 {[%emt 0:02:17][%mdl 64] Remove Defender} exf5 {[%emt 0:00:03] [#]} 25. Nxh6+ {[%emt 0:01:11][%mdl 576] Demolition} gxh6 {[%emt 0:00:04]} 26. Qxh6 {[%emt 0:00:10][%csl Gg5][%cal Rh6h7]} Bxg5 {[%emt 0:00:47]} 27. Bxg5 {[%emt 0:00:14] Threatening mate with Bf6.} Nd7 {[%emt 0:00:44]} 28. e6 {[%emt 0:00:04]} ({Weaker is} 28. Qxa6 Bxa6 29. Bxd8 Rxd8 $18) 28... Qc7 {[%emt 0:03:52]} 29. cxd5 {[%emt 0:00:54] Hoping for Be7.} ({Don't play} 29. Bf4 Qd8 30. e7 Rxh6 $18) 29... Bb7 {[%emt 0:02:56]} 30. Bf4 {[%emt 0:01:01] Repels Qd6} Qc8 {[%emt 0:00:56]} 31. Qg5+ {[%emt 0:00:51]} Kh8 {[%emt 0:00:05]} 32. exd7 {[%emt 0:00:43]} Qxd7 {[%emt 0:00:05]} 33. Re7 {[%emt 0:00:16] Intending Be5+ and mate.} Qxd5 {[%emt 0:00:50] Black is weak on the dark squares} 34. Be5+ {[%emt 0:00:05]} Kh7 {[%emt 0:00:05]} 35. Qg7# {[%emt 0:00:05] Beautiful play by David!   Weighted Error Value: White=0.08 (flawless) /Black=0.61} 1-0

[Event "82nd Italian Championship 2023"]
[Site "Brescia"]
[Date "2023.11.30"]
[Round "3.3"]
[White "Dvirnyy, Danyyil"]
[Black "Moroni, Luca Jr"]
[Result "1/2-1/2"]
[ECO "D78"]
[WhiteElo "2495"]
[BlackElo "2575"]
[Annotator "TA"]
[PlyCount "35"]
[EventDate "2023.11.28"]
[EventType "tourn"]
[EventCountry "ITA"]
[SourceTitle "playchess.com"]
[Source "ChessBase"]
[SourceQuality "1"]
[TimeControl "40/6000+30:20/3000+30:900+30"]

{[%evp 14,22,29,35,43,29,34,11,24,0,35]} 1. Nf3 {[%emt 0:00:04]} d5 {[%emt 0:00:05]} 2. g3 {[%emt 0:00:20]} g6 {[%emt 0:02:25]} 3. Bg2 {[%emt 0:02:07]} Bg7 {[%emt 0:00:14]} 4. d4 {[%emt 0:00:06]} c6 {[%emt 0:00:44]} 5. O-O {[%emt 0:00:25]} Nf6 {[%emt 0:00:07]} 6. c4 {[%emt 0:01:16]} O-O {[%emt 0:01:10]} 7. Nc3 {[%emt 0:05:48]} Ne4 {[%emt 0:11:24]} 8. Qb3 {[%emt 0:04:36]} b6 {[%emt 0:08:57] D78: Fianchetto Grünfeld: 6 0-0 c6.} 9. cxd5 {[%emt 0:23:18]} Nxc3 {[%emt 0:01:04]} 10. bxc3 {[%emt 0:02:05] [#] aiming for Ne5.} cxd5 {[%emt 0:01:23]} 11. Nd2 {[%emt 0:15:34]} Bb7 {[%emt 0:05:22] [#] White took control after the opening.   Weighted Error Value: White=0.11 (very precise) /Black=0.04 (flawless)} {Predecessor:} 12. e4 $146 e6 13. Ba3 Re8 14. Rfe1 Nc6 15. exd5 Na5 16. Qb5 a6 17. Qd3 Bxd5 18. Ne4 {½-½ Oltean,G (2127)-Keresztesi,J (1904) Veszprem Hemo op 2008 (4)} 1/2-1/2

[Event "82nd Italian Championship 2023"]
[Site "Brescia"]
[Date "2023.11.30"]
[Round "3.4"]
[White "Lodici, Lorenzo"]
[Black "Sonis, Francesco"]
[Result "1/2-1/2"]
[ECO "B11"]
[WhiteElo "2550"]
[BlackElo "2564"]
[Annotator "TA"]
[PlyCount "39"]
[EventDate "2023.11.28"]
[EventType "tourn"]
[EventCountry "ITA"]
[SourceTitle "playchess.com"]
[Source "ChessBase"]
[SourceQuality "1"]
[TimeControl "40/6000+30:20/3000+30:900+30"]

{[%evp 11,39,11,20,29,22,16,20,6,20,-2,11,0,-2,-5,-5,-15,-31,-26,10,-6,10,0,12,10,10,10,10,10,14,8]} 1. e4 {[%emt 0:01:51]} c6 {[%emt 0:00:17]} 2. Nc3 {[%emt 0:04:19]} d5 {[%emt 0:00:11]} 3. Nf3 {[%emt 0:00:30]} Bg4 {[%emt 0:00:11]} 4. h3 {[%emt 0:00:06]} Bxf3 {[%emt 0:00:07]} 5. Qxf3 {[%emt 0:00:03]} e6 {[%emt 0:00:12]} 6. d4 {[%emt 0:00:07]} dxe4 {[%emt 0:03:18]} 7. Qxe4 {[%emt 0:00:05] B11: Caro-Kann: Two Knights Variation.} Nf6 {[%emt 0:00:09]} 8. Qd3 {[%emt 0:00:03]} Nbd7 {[%emt 0:01:48]} 9. Be2 {[%emt 0:02:52]} Bd6 {[%emt 0:03:02]} 10. O-O {[%emt 0:01:50]} Qc7 {[%emt 0:01:44] [#]} 11. Qf3 $146 {[%emt 0:03:23]} ({Predecessor:} 11. a4 a5 12. Nd1 O-O 13. Ne3 Nd5 14. Bf3 Rad8 15. c3 Nf4 16. Qc2 Ng6 17. g3 {1-0 Fedoseev,V (2688)-Bilan,D (2303) Titled Tuesday intern op 15th Nov Early blitz 2022 (1)}) 11... O-O {[%emt 0:02:38]} 12. Rd1 {[%emt 0:02:47]} Rfe8 {[%emt 0:02:38]} 13. Ne4 {[%emt 0:06:54]} Nxe4 {[%emt 0:04:06]} 14. Qxe4 {[%emt 0:00:13]} Rad8 {[%emt 0:00:08]} 15. c3 {[%emt 0:00:26] The position is equal.} Nf6 {[%emt 0:00:21]} 16. Qf3 {[%emt 0:00:23]} Qe7 {[%emt 0:02:24]} 17. Bg5 {[%emt 0:01:23]} h6 {[%emt 0:00:07]} 18. Bxf6 {[%emt 0:02:00]} Qxf6 {[%emt 0:00:07]} 19. Qxf6 {[%emt 0:00:08]} gxf6 {[%emt 0:00:05]} 20. Bf3 {[%emt 0:02:09] A rather calm draw.   Weighted Error Value: White=0.09 (flawless) /Black=0.09 (flawless)} 1/2-1/2

[Event "82nd Italian Championship 2023"]
[Site "Brescia"]
[Date "2023.11.30"]
[Round "3.5"]
[White "Brunello, Sabino"]
[Black "Gilevych, Artem"]
[Result "1/2-1/2"]
[ECO "A13"]
[WhiteElo "2492"]
[BlackElo "2416"]
[Annotator "TA"]
[PlyCount "79"]
[EventDate "2023.11.28"]
[EventType "tourn"]
[EventCountry "ITA"]
[SourceTitle "playchess.com"]
[Source "ChessBase"]
[SourceQuality "1"]
[TimeControl "40/6000+30:20/3000+30:900+30"]

{[%evp 9,79,14,18,15,14,5,8,0,13,0,0,0,0,0,3,0,0,0,0,0,0,0,7,0,0,0,29,17,25,0,40,22,10,-2,-10,-8,3,7,10,-4,0,0,17,18,12,11,14,14,26,14,37,10,12,12,12,12,12,12,12,12,12,12,24,3,6,7,12,5,7,0,0,0]} 1. c4 {[%emt 0:00:03]} e6 {[%emt 0:02:00]} 2. g3 {[%emt 0:00:31]} d5 {[%emt 0:01:22]} 3. Bg2 {[%emt 0:00:17]} Nf6 {[%emt 0:00:18]} 4. Nf3 {[%emt 0:00:24]} dxc4 {[%emt 0:00:06]} 5. Qa4+ {[%emt 0:00:37]} Bd7 {[%emt 0:01:19]} 6. Qxc4 {[%emt 0:00:15] A13: English Opening: 1...e6.} c5 {[%emt 0:00:10]} 7. Ne5 {[%emt 0:03:55]} Qc8 {[%emt 0:02:26]} 8. Nc3 {[%emt 0:02:35]} Nc6 {[%emt 0:01:41]} 9. Nxd7 {[%emt 0:00:05]} Qxd7 {[%emt 0:00:05]} 10. Qa4 {[%emt 0:00:08]} Rc8 {[%emt 0:01:09]} 11. d3 {[%emt 0:00:08]} Be7 {[%emt 0:02:04]} 12. Bd2 {[%emt 0:02:19]} O-O {[%emt 0:06:56]} 13. O-O {[%emt 0:00:18]} Rfd8 {[%emt 0:00:44][%cal Oc5c4]} 14. Rfd1 {[%emt 0:00:13]} b6 {[%emt 0:00:48]} 15. Rac1 {[%emt 0:06:34]} Ne8 {[%emt 0:07:19][%cal Bf6e8,Be8d6,Bd6f5][%mdl 32]} 16. Kf1 {[%emt 0:10:03]} Nd6 {[%emt 0:11:48] [#]} 17. Be1 $146 {[%emt 0:00:54]} ({Predecessor:} 17. Ne4 Nf5 18. b4 cxb4 19. Nf6+ gxf6 20. Bxc6 Qd6 21. Be4 Qb8 22. Bxb4 Bxb4 23. Qxb4 {1-0 Sadovsky,A (2403)-Kovalchuk,A (2445) RUS Central Region-chT 2017 (5.2)}) 17... Bg5 {[%emt 0:02:12]} 18. e3 {[%emt 0:02:23]} Nf5 {[%emt 0:17:28][%cal Og5e3]} 19. g4 {[%emt 0:17:52]} Nd6 {[%emt 0:10:57]} 20. f4 {[%emt 0:08:49]} Bf6 {[%emt 0:02:45]} 21. d4 {[%emt 0:28:48]} cxd4 {[%emt 0:07:56]} 22. exd4 {[%emt 0:06:44]} Nb8 {[%emt 0:07:06]} (22... b5 {keeps more tension.} 23. Nxb5 Nxd4 24. Nc3 Qxa4 25. Nxa4 Nc4) 23. Qxd7 {[%emt 0:08:09]} Nxd7 {[%emt 0:00:10]} 24. Bf2 {[%emt 0:00:11]} g6 {[%emt 0:04:37]} 25. Ne4 {[%emt 0:06:38]} Nxe4 {[%emt 0:02:31]} 26. Bxe4 {[%emt 0:00:03]} Be7 {[%emt 0:09:00]} 27. g5 {[%emt 0:00:49] Repels Nf6} Bd6 {[%emt 0:02:30] Black is weak on the light squares} 28. Be3 {[%emt 0:00:15]} Kf8 {[%emt 0:01:27]} 29. h4 {[%emt 0:01:58]} Ke7 {[%emt 0:01:40]} 30. Ke2 {[%emt 0:00:12]} h6 {[%emt 0:00:39]} 31. a4 {[%emt 0:01:21]} hxg5 {[%emt 0:00:14]} 32. hxg5 {[%emt 0:00:51]} Rxc1 {[%emt 0:00:05]} 33. Rxc1 {[%emt 0:00:22]} Rh8 {[%emt 0:00:21]} 34. Rh1 {[%emt 0:01:15] Prevents Rh2+} Rxh1 {[%emt 0:00:06]} 35. Bxh1 $11 {[%emt 0:00:01] KBB-KBN} Nb8 {[%emt 0:03:10]} 36. Kd3 {[%emt 0:00:53]} Na6 {[%emt 0:00:25] The position is equal.} 37. Kc4 {[%emt 0:00:42]} Nc7 {[%emt 0:00:12]} 38. Bc6 {[%emt 0:01:14]} a6 {[%emt 0:01:55]} 39. b4 {[%emt 0:00:37]} b5+ {[%emt 0:01:18]} 40. axb5 {[%emt 0:00:31] A balanced but interesting game.   Weighted Error Value: White=0.06 (flawless) /Black=0.05 (flawless)} 1/2-1/2

[Event "82nd Italian Championship 2023"]
[Site "Brescia"]
[Date "2023.12.01"]
[Round "4.2"]
[White "Gilevych, Artem"]
[Black "Lumachi, Gabriele"]
[Result "1-0"]
[ECO "A50"]
[WhiteElo "2416"]
[BlackElo "2395"]
[Annotator "TA"]
[PlyCount "97"]
[EventDate "2023.11.28"]
[EventType "tourn"]
[EventCountry "ITA"]
[SourceTitle "playchess.com"]
[Source "ChessBase"]
[SourceQuality "1"]
[TimeControl "40/6000+30:20/3000+30:900+30"]

{[%evp 9,97,18,1,-31,-22,-32,-35,-35,-35,-38,-39,-47,-14,-22,-32,-29,-20,-36,-41,-44,-34,-29,-29,-26,-22,-44,-28,-22,22,-49,48,45,136,121,117,129,136,137,121,131,128,130,179,174,161,146,215,205,197,183,243,264,282,277,319,339,302,331,302,325,336,322,339,326,327,304,538,540,540,542,504,495,729,721,1457,1436,1651,1624,1112,1081,1086,1040,1660,1689,1164,1132,1048,995,2027,1893]} 1. d4 {[%emt 0:02:27]} Nf6 {[%emt 0:00:54]} 2. c4 {[%emt 0:00:04]} e6 {[%emt 0:00:09]} 3. Bf4 {[%emt 0:00:04]} d5 {[%emt 0:07:25]} 4. cxd5 {[%emt 0:01:28]} Nxd5 {[%emt 0:07:40]} 5. Bg3 {[%emt 0:00:10]} c5 {[%emt 0:00:05]} 6. e4 {[%emt 0:00:09] A50: Queen's Fianchetto Defence (1 d4 Nf6 2 c4 b6).} Nf6 {[%emt 0:00:03][%csl LRd4,LRe4]} 7. Nd2 {[%emt 0:00:30]} Qxd4 {[%emt 0:00:06]} 8. Ngf3 {[%emt 0:00:53] Black is slightly better.} Qd8 {[%emt 0:00:05]} 9. e5 {[%emt 0:01:28]} Nd5 {[%emt 0:00:06]} 10. Bd3 {[%emt 0:00:15]} Nc6 {[%emt 0:00:06][%cal Od5c3]} 11. Qe2 {[%emt 0:01:06] [#]} Ncb4 $146 {[%emt 0:01:44]} ({Predecessor:} 11... Be7 12. a3 Bd7 13. O-O g5 14. h3 Qc7 15. Rac1 h5 16. Ne4 g4 17. hxg4 hxg4 {1-0 Koelle,T (2438)-Bracker,A (2267) GER-ch 94th Ostfildern 2023 (1)}) 12. Be4 {[%emt 0:02:03]} b6 {[%emt 0:01:02]} 13. O-O {[%emt 0:01:00]} Ba6 {[%emt 0:04:36]} 14. Nc4 {[%emt 0:00:28]} Be7 {[%emt 0:16:07]} 15. a3 {[%emt 0:05:44]} Nc6 {[%emt 0:01:32]} 16. Rad1 {[%emt 0:03:56]} O-O {[%emt 0:05:36]} 17. Qc2 {[%emt 0:01:07]} h6 {[%emt 0:07:08]} 18. Rfe1 {[%emt 0:03:47]} Rc8 {[%emt 0:07:07][%cal Oc6d4]} 19. Qa4 {[%emt 0:09:20]} (19. Bxd5 $11 exd5 20. Nd6) 19... Bb7 {[%emt 0:15:53]} (19... Bxc4 $1 $15 20. Qxc4 Na5) 20. Bb1 {[%emt 0:08:34]} Qe8 {[%emt 0:11:58] White now steadily converts the win.} (20... g6 $14) 21. Qc2 $16 {[%emt 0:10:32][%csl Gb1][%cal Rc2h7] [#] White has more active pieces.} g6 {[%emt 0:00:03][%cal Oc6d4]} 22. Nd6 $36 {[%emt 0:06:54][%mdl 2048] Black is under strong pressure.} Bxd6 {[%emt 0:00:34]} 23. exd6 {[%emt 0:00:02] Strongly threatening Rxd5.} Qd7 {[%emt 0:02:07]} 24. h4 {[%emt 0:07:21]} f5 {[%emt 0:01:06] [#]} 25. Ba2 $1 {[%emt 0:06:51][%cal Oe1e6] Threatens to win with Rxe6!} Nd4 {[%emt 0:02:56]} (25... Rfe8 $16 {is a better defense.}) 26. Nxd4 $18 {[%emt 0:00:14]} cxd4 {[%emt 0:00:05]} 27. Qd2 {[%emt 0:05:08]} f4 {[%emt 0:04:12]} (27... Kh7 $16) 28. Bxd5 {[%emt 0:01:09]} Bxd5 {[%emt 0:01:37]} 29. Bxf4 {[%emt 0:00:05]} d3 {[%emt 0:02:36]} (29... Rf5 $142 30. Bg3 (30. Bxh6 e5 $16) (30. Qxd4 $2 Rc4 $19) 30... Qg7) 30. Bg3 {[%emt 0:04:25]} ({Stronger than} 30. Bxh6 Rc2 31. Qxd3 Rfxf2 32. Qxg6+ Kh8 33. Rxd5 Rxg2+ 34. Qxg2 Rxg2+ 35. Kxg2 exd5 $11) 30... Bb3 {[%emt 0:03:48]} 31. Qxh6 {[%emt 0:07:25]} Bxd1 {[%emt 0:03:15]} 32. Qxg6+ {[%emt 0:00:13]} ({Not} 32. Rxd1 Qh7 33. Qe3 Qd7 34. Rxd3 (34. Qxd3 Rf5 $16) 34... Rf5 $18) 32... Qg7 {[%emt 0:00:05]} 33. Qxe6+ {[%emt 0:01:06]} (33. Rxe6 $2 {too greedy.} Qxg6 34. Rxg6+ Kh7 $19) 33... Qf7 {[%emt 0:02:08]} 34. Qxf7+ {[%emt 0:00:19]} Kxf7 {[%emt 0:00:16]} 35. Rxd1 {[%emt 0:00:05][%mdl 4096] Endgame KRR-KRB} Ke6 {[%emt 0:00:08]} 36. Rxd3 {[%emt 0:00:14]} Kd7 {[%emt 0:00:03]} 37. Rd2 {[%emt 0:02:42]} a5 $2 {[%emt 0:00:17]} (37... Rc4 {keeps fighting.} 38. Kh2 Rh8) 38. Be5 {[%emt 0:01:29] White is clearly winning.} Rg8 {[%emt 0:02:52]} 39. Kh2 {[%emt 0:01:54]} Rg4 {[%emt 0:00:37]} 40. g3 {[%emt 0:00:11]} Re4 {[%emt 0:01:40]} (40... Rcg8 $142 41. f3 Rc4) 41. f4 {[%emt 0:50:12]} Rc1 {[%emt 0:50:20]} 42. h5 {[%emt 0:01:50][%cal Bh4h5,Bh5h6,Bh6h7][%mdl 32]} Ree1 {[%emt 0:00:00]} 43. Kh3 {[%emt 0:00:00]} Re3 {[%emt 0:00:00]} 44. Rg2 {[%emt 0:00:00]} Ke6 {[%emt 0:00:00]} 45. Kg4 {[%emt 0:00:00]} Rc8 {[%emt 0:00:00]} 46. h6 {[%emt 0:00:00]} Rg8+ {[%emt 0:00:00]} 47. Bg7 {[%emt 0:00:00]} Kxd6 {[%emt 0:00:00]} 48. Kf5 {[%emt 0:00:00] And now h7 would win.} Ke7 {[%emt 0:00:00]} 49. h7 {[%emt 0:00:00] Weighted Error Value: White=0.05 (flawless) /Black=0.30} 1-0